[Event "Early-Titled-Tuesday-Blitz-February-06-2024"]
[Site "Chess.com"]
[Date "2024.02.06"]
[Round "8"]
[White "abelmat"]
[Black "salomez"]
[Result "0-1"]
[WhiteElo "2088"]
[BlackElo "2297"]
[TimeControl "180+1"]
[EndTime "9:28:27 PST"]
[Termination "salomez won by checkmate"]

1. d4 {[%clk 0:03:00.9]} 1... Nf6 {[%clk 0:02:59.3]} 2. c4 {[%clk 0:03:00.4]}
2... g6 {[%clk 0:02:59.6]} 3. Nf3 {[%clk 0:03:00.9]} 3... Bg7 {[%clk 0:02:59.4]}
4. g3 {[%clk 0:03:00.6]} 4... O-O {[%clk 0:02:58.8]} 5. Bg2 {[%clk 0:03:01]}
5... c6 {[%clk 0:02:59.2]} 6. O-O {[%clk 0:03:01.4]} 6... d5 {[%clk 0:02:59.4]}
7. b3 {[%clk 0:03:01.8]} 7... dxc4 {[%clk 0:02:57.8]} 8. bxc4 {[%clk 0:03:02]}
8... c5 {[%clk 0:02:58.3]} 9. Bb2 {[%clk 0:02:58.2]} 9... cxd4 {[%clk
0:02:57.9]} 10. Bxd4 {[%clk 0:02:57.5]} 10... Nc6 {[%clk 0:02:57.5]} 11. Bb2
{[%clk 0:02:54.9]} 11... Be6 {[%clk 0:02:50.9]} 12. Nbd2 {[%clk 0:02:53.8]}
12... Rc8 {[%clk 0:02:42.1]} 13. Rc1 {[%clk 0:02:52.7]} 13... Qa5 {[%clk
0:02:41.2]} 14. Nb3 {[%clk 0:02:46.7]} 14... Qxa2 {[%clk 0:02:32.7]} 15. Qc2
{[%clk 0:02:34]} 15... Nb4 {[%clk 0:02:29.7]} 16. Qc3 {[%clk 0:02:33.6]} 16...
Rxc4 {[%clk 0:02:27.9]} 17. Ra1 {[%clk 0:01:59.6]} 17... Rxc3 {[%clk 0:02:25.8]}
18. Rxa2 {[%clk 0:01:56]} 18... Rxb3 {[%clk 0:02:25.4]} 19. Bxf6 {[%clk
0:01:54.6]} 19... Bxf6 {[%clk 0:02:22.7]} 20. Rxa7 {[%clk 0:01:55.5]} 20... Nc6
{[%clk 0:02:13.1]} 21. Ra4 {[%clk 0:01:50.7]} 21... b5 {[%clk 0:02:11.8]} 22.
Ra6 {[%clk 0:01:49.2]} 22... Nd4 {[%clk 0:02:08.1]} 23. Nxd4 {[%clk 0:01:43.1]}
23... Bxd4 {[%clk 0:02:09]} 24. Rd1 {[%clk 0:01:33.2]} 24... Bc5 {[%clk
0:02:00.3]} 25. Bd5 {[%clk 0:01:30.1]} 25... Bxd5 {[%clk 0:01:57]} 26. Rxd5
{[%clk 0:01:30.3]} 26... Bd6 {[%clk 0:01:54.1]} 27. e4 {[%clk 0:01:28.3]} 27...
f6 {[%clk 0:01:53.3]} 28. Kg2 {[%clk 0:01:23.4]} 28... Rc8 {[%clk 0:01:52.2]}
29. f4 {[%clk 0:01:22.6]} 29... Rc5 {[%clk 0:01:46.3]} 30. Rd2 {[%clk
0:01:12.4]} 30... Rc4 {[%clk 0:01:38.9]} 31. Re2 {[%clk 0:01:03.4]} 31... Ra3
{[%clk 0:01:15.7]} 32. Rb6 {[%clk 0:00:58.3]} 32... b4 {[%clk 0:01:14.1]} 33. e5
{[%clk 0:00:57.1]} 33... fxe5 {[%clk 0:01:11.9]} 34. fxe5 {[%clk 0:00:57]} 34...
Bc5 {[%clk 0:01:11.7]} 35. Rb8+ {[%clk 0:00:52.2]} 35... Kf7 {[%clk 0:01:11.6]}
36. e6+ {[%clk 0:00:51.5]} 36... Kg7 {[%clk 0:01:08.3]} 37. Rd2 {[%clk
0:00:45.1]} 37... b3 {[%clk 0:01:06.2]} 38. Rdd8 {[%clk 0:00:44.3]} 38... Ra2+
{[%clk 0:01:01.5]} 39. Kh3 {[%clk 0:00:43.2]} 39... Rb4 {[%clk 0:00:55.8]} 40.
Rbc8 {[%clk 0:00:39]} 40... b2 {[%clk 0:00:54.5]} 41. Rg8+ {[%clk 0:00:28.4]}
41... Kh6 {[%clk 0:00:51.7]} 42. Rxc5 {[%clk 0:00:18.4]} 42... b1=Q {[%clk
0:00:50]} 43. g4 {[%clk 0:00:12.1]} 43... Rb3+ {[%clk 0:00:44.7]} 44. Kh4 {[%clk
0:00:05.5]} 44... Rxh2# {[%clk 0:00:40]} 0-1

[Event "Early-Titled-Tuesday-Blitz-February-06-2024"]
[Site "Chess.com"]
[Date "2024.02.06"]
[Round "8"]
[White "AniJak"]
[Black "BeardedNM"]
[Result "1-0"]
[WhiteElo "2374"]
[BlackElo "2211"]
[TimeControl "180+1"]
[EndTime "9:28:29 PST"]
[Termination "AniJak won by resignation"]

1. e4 {[%clk 0:03:00.9]} 1... e6 {[%clk 0:02:59.1]} 2. d4 {[%clk 0:02:59.8]}
2... d5 {[%clk 0:02:55.4]} 3. Nc3 {[%clk 0:02:59.9]} 3... Bb4 {[%clk 0:02:53.8]}
4. Ne2 {[%clk 0:02:59.7]} 4... dxe4 {[%clk 0:02:53.7]} 5. a3 {[%clk 0:02:59.3]}
5... Be7 {[%clk 0:02:53.9]} 6. Nxe4 {[%clk 0:02:58.8]} 6... Nf6 {[%clk
0:02:54.5]} 7. N2g3 {[%clk 0:02:55.2]} 7... O-O {[%clk 0:02:52.4]} 8. Bd3 {[%clk
0:02:53.4]} 8... Qxd4 {[%clk 0:02:47]} 9. Nxf6+ {[%clk 0:02:43.7]} 9... Bxf6
{[%clk 0:02:37.8]} 10. O-O {[%clk 0:02:42]} 10... g6 {[%clk 0:02:25.6]} 11. Bh6
{[%clk 0:02:39.2]} 11... Rd8 {[%clk 0:02:20]} 12. Qf3 {[%clk 0:02:29.6]} 12...
Nc6 {[%clk 0:02:13.4]} 13. Ne4 {[%clk 0:02:26.3]} 13... Bg7 {[%clk 0:02:08.9]}
14. Bg5 {[%clk 0:02:19.8]} 14... f5 {[%clk 0:01:05.8]} 15. Nc3 {[%clk
0:01:53.1]} 15... Re8 {[%clk 0:00:54.5]} 16. Nb5 {[%clk 0:01:51.4]} 16... Qd7
{[%clk 0:00:50.4]} 17. Rad1 {[%clk 0:01:44.9]} 17... Ne5 {[%clk 0:00:49.9]} 18.
Qg3 {[%clk 0:01:18.6]} 18... Nxd3 {[%clk 0:00:50]} 19. Nxc7 {[%clk 0:01:13.7]}
19... f4 {[%clk 0:00:24.5]} 20. Bxf4 {[%clk 0:01:12.8]} 20... e5 {[%clk
0:00:18.6]} 21. Nxe8 {[%clk 0:01:05.5]} 21... exf4 {[%clk 0:00:17.9]} 22. Qxd3
{[%clk 0:01:01.3]} 22... Qxe8 {[%clk 0:00:17.1]} 23. Rfe1 {[%clk 0:00:59.9]}
23... Qf7 {[%clk 0:00:16.1]} 24. Qd8+ {[%clk 0:00:57.8]} 24... Bf8 {[%clk
0:00:16.4]} 25. Re8 {[%clk 0:00:56.4]} 25... Bg4 {[%clk 0:00:13.4]} 26. Qxa8
{[%clk 0:00:36.2]} 26... Bxd1 {[%clk 0:00:13.5]} 27. Rd8 {[%clk 0:00:30.9]}
27... Bxc2 {[%clk 0:00:12.9]} 28. Qxa7 {[%clk 0:00:30.3]} 28... Bf5 {[%clk
0:00:10.5]} 29. h3 {[%clk 0:00:29]} 29... Kg7 {[%clk 0:00:10]} 30. Qd4+ {[%clk
0:00:28.2]} 30... Qf6 {[%clk 0:00:09.8]} 31. Qxf6+ {[%clk 0:00:27.6]} 31... Kxf6
{[%clk 0:00:09.4]} 32. Rxf8+ {[%clk 0:00:28.5]} 32... Ke5 {[%clk 0:00:09.6]} 33.
Rb8 {[%clk 0:00:28.1]} 33... Be4 {[%clk 0:00:09.2]} 34. f3 {[%clk 0:00:26.7]}
34... Bc6 {[%clk 0:00:09.4]} 35. Rh8 {[%clk 0:00:25.9]} 35... h5 {[%clk
0:00:09.1]} 36. Kf2 {[%clk 0:00:25.3]} 36... Kf6 {[%clk 0:00:07.6]} 37. Rd8
{[%clk 0:00:24.7]} 37... Kg5 {[%clk 0:00:07.3]} 38. b3 {[%clk 0:00:22.7]} 38...
Kf6 {[%clk 0:00:06.2]} 39. a4 {[%clk 0:00:22.8]} 39... g5 {[%clk 0:00:06.3]} 40.
a5 {[%clk 0:00:22.8]} 40... g4 {[%clk 0:00:06.4]} 41. Rd6+ {[%clk 0:00:23]}
41... Ke5 {[%clk 0:00:05.8]} 42. Rxc6 {[%clk 0:00:21.3]} 42... bxc6 {[%clk
0:00:06.2]} 43. a6 {[%clk 0:00:21.9]} 43... Kd6 {[%clk 0:00:06.6]} 44. a7 {[%clk
0:00:22]} 1-0

[Event "Early-Titled-Tuesday-Blitz-February-06-2024"]
[Site "Chess.com"]
[Date "2024.02.06"]
[Round "8"]
[White "santosalberto1987"]
[Black "OK97"]
[Result "0-1"]
[WhiteElo "2572"]
[BlackElo "2812"]
[TimeControl "180+1"]
[EndTime "9:28:31 PST"]
[Termination "OK97 won by resignation"]

1. e4 {[%clk 0:03:00.9]} 1... Nc6 {[%clk 0:03:00]} 2. Nf3 {[%clk 0:03:00.7]}
2... d6 {[%clk 0:03:00.1]} 3. d4 {[%clk 0:02:59.8]} 3... Nf6 {[%clk 0:03:00.6]}
4. Nc3 {[%clk 0:02:58.5]} 4... g6 {[%clk 0:03:01]} 5. Be3 {[%clk 0:02:57.3]}
5... Bg7 {[%clk 0:03:00.7]} 6. Qd2 {[%clk 0:02:55.6]} 6... O-O {[%clk
0:03:00.4]} 7. Bh6 {[%clk 0:02:54.1]} 7... e5 {[%clk 0:02:57.7]} 8. d5 {[%clk
0:02:49.3]} 8... Ne7 {[%clk 0:02:51.4]} 9. h4 {[%clk 0:02:46.8]} 9... Bxh6
{[%clk 0:02:43.1]} 10. Qxh6 {[%clk 0:02:46.4]} 10... Ng4 {[%clk 0:02:43.8]} 11.
Qd2 {[%clk 0:02:47]} 11... h5 {[%clk 0:02:43.6]} 12. Be2 {[%clk 0:02:45.4]}
12... Kg7 {[%clk 0:02:35]} 13. Ng5 {[%clk 0:02:42.1]} 13... f6 {[%clk
0:02:22.3]} 14. Ne6+ {[%clk 0:02:40.9]} 14... Bxe6 {[%clk 0:02:22.5]} 15. dxe6
{[%clk 0:02:41.8]} 15... f5 {[%clk 0:02:17.4]} 16. exf5 {[%clk 0:02:36.2]} 16...
Rxf5 {[%clk 0:01:59.3]} 17. Bxg4 {[%clk 0:02:32.6]} 17... hxg4 {[%clk
0:01:59.8]} 18. O-O-O {[%clk 0:02:32]} 18... Qf8 {[%clk 0:01:36.9]} 19. Rhf1
{[%clk 0:02:15.6]} 19... Rd8 {[%clk 0:01:22.8]} 20. Ne4 {[%clk 0:02:13.8]} 20...
Rf4 {[%clk 0:01:12]} 21. Ng5 {[%clk 0:02:09]} 21... Qf5 {[%clk 0:01:05.6]} 22.
g3 {[%clk 0:01:58.7]} 22... Rd4 {[%clk 0:01:02.3]} 23. Qe2 {[%clk 0:01:56.9]}
23... Rxd1+ {[%clk 0:00:54]} 24. Rxd1 {[%clk 0:01:56.7]} 24... Rf8 {[%clk
0:00:54.3]} 25. Rd2 {[%clk 0:01:56.3]} 25... Nc6 {[%clk 0:00:50.4]} 26. c3
{[%clk 0:01:53]} 26... a6 {[%clk 0:00:43.8]} 27. Qe4 {[%clk 0:01:49.5]} 27...
Qxe4 {[%clk 0:00:40.7]} 28. Nxe4 {[%clk 0:01:49.5]} 28... Re8 {[%clk 0:00:39.1]}
29. Ng5 {[%clk 0:01:19]} 29... Nd8 {[%clk 0:00:39.1]} 30. Re2 {[%clk 0:01:05.2]}
30... Nxe6 {[%clk 0:00:39.1]} 31. Nxe6+ {[%clk 0:01:05]} 31... Rxe6 {[%clk
0:00:40]} 32. Kd2 {[%clk 0:01:05.3]} 32... d5 {[%clk 0:00:28.5]} 33. Ke1 {[%clk
0:01:05.1]} 33... Kf6 {[%clk 0:00:27.7]} 34. Rd2 {[%clk 0:01:05]} 34... Rd6
{[%clk 0:00:26.3]} 35. Re2 {[%clk 0:01:02.4]} 35... Kf5 {[%clk 0:00:26.6]} 36.
Kf1 {[%clk 0:00:58.5]} 36... c5 {[%clk 0:00:26.6]} 37. Ke1 {[%clk 0:00:58.3]}
37... e4 {[%clk 0:00:25.7]} 38. Rd2 {[%clk 0:00:54.8]} 38... Ke5 {[%clk
0:00:23.8]} 39. Ke2 {[%clk 0:00:53.9]} 39... b5 {[%clk 0:00:24.1]} 40. Rc2
{[%clk 0:00:50.3]} 40... a5 {[%clk 0:00:21.7]} 41. b3 {[%clk 0:00:48.5]} 41...
Rf6 {[%clk 0:00:14.6]} 42. b4 {[%clk 0:00:36.8]} 42... axb4 {[%clk 0:00:13.8]}
43. cxb4 {[%clk 0:00:37.1]} 43... c4 {[%clk 0:00:14.4]} 44. a4 {[%clk
0:00:36.7]} 44... bxa4 {[%clk 0:00:14.5]} 45. Ra2 {[%clk 0:00:36]} 45... Ra6
{[%clk 0:00:13.9]} 46. b5 {[%clk 0:00:33.8]} 46... Rb6 {[%clk 0:00:13.8]} 47.
Rxa4 {[%clk 0:00:34.2]} 47... Rxb5 {[%clk 0:00:14.1]} 48. Ra6 {[%clk 0:00:34.8]}
48... Rb2+ {[%clk 0:00:13.7]} 49. Ke1 {[%clk 0:00:35]} 49... c3 {[%clk 0:00:13]}
50. Rxg6 {[%clk 0:00:35.2]} 50... Rb1+ {[%clk 0:00:13.3]} 51. Ke2 {[%clk
0:00:34.1]} 51... c2 {[%clk 0:00:13.9]} 0-1

[Event "Early-Titled-Tuesday-Blitz-February-06-2024"]
[Site "Chess.com"]
[Date "2024.02.06"]
[Round "8"]
[White "Bilan_Danila"]
[Black "rhungaski"]
[Result "1-0"]
[WhiteElo "2619"]
[BlackElo "2492"]
[TimeControl "180+1"]
[EndTime "9:28:32 PST"]
[Termination "Bilan_Danila won by resignation"]

1. d4 {[%clk 0:02:54.2]} 1... g6 {[%clk 0:02:59.5]} 2. Nf3 {[%clk 0:02:53.4]}
2... Bg7 {[%clk 0:03:00]} 3. Bg5 {[%clk 0:02:51.8]} 3... h6 {[%clk 0:02:56.8]}
4. Bh4 {[%clk 0:02:49.1]} 4... d6 {[%clk 0:02:52.7]} 5. c3 {[%clk 0:02:48.3]}
5... Nf6 {[%clk 0:02:44.8]} 6. Nbd2 {[%clk 0:02:48]} 6... g5 {[%clk 0:02:38.5]}
7. Bg3 {[%clk 0:02:44.8]} 7... Nh5 {[%clk 0:02:38.7]} 8. e4 {[%clk 0:02:40]}
8... Nd7 {[%clk 0:02:34]} 9. Bc4 {[%clk 0:02:31.4]} 9... e6 {[%clk 0:02:31.4]}
10. Nf1 {[%clk 0:02:21.7]} 10... a6 {[%clk 0:02:27.5]} 11. a4 {[%clk 0:02:04.2]}
11... b6 {[%clk 0:02:23.7]} 12. Ne3 {[%clk 0:01:44.1]} 12... Nf8 {[%clk
0:01:23.5]} 13. d5 {[%clk 0:01:23.3]} 13... e5 {[%clk 0:00:47.3]} 14. Nxe5
{[%clk 0:01:14.7]} 14... Nxg3 {[%clk 0:00:47.2]} 15. Nc6 {[%clk 0:01:13.3]}
15... Nxh1 {[%clk 0:00:28]} 16. Nxd8 {[%clk 0:01:10.1]} 16... Kxd8 {[%clk
0:00:28.9]} 17. Ke2 {[%clk 0:00:56.4]} 17... Nxf2 {[%clk 0:00:21.3]} 18. Kxf2
{[%clk 0:00:57.3]} 18... Ng6 {[%clk 0:00:21.4]} 19. Be2 {[%clk 0:00:52.7]} 19...
Re8 {[%clk 0:00:17.3]} 20. Bg4 {[%clk 0:00:35.9]} 20... Rxe4 {[%clk 0:00:16.6]}
21. Bxc8 {[%clk 0:00:35.3]} 21... Kxc8 {[%clk 0:00:16.3]} 22. g3 {[%clk
0:00:32.6]} 22... Kb7 {[%clk 0:00:16.2]} 23. Nf5 {[%clk 0:00:21.9]} 23... Bf6
{[%clk 0:00:14.6]} 24. Nxh6 {[%clk 0:00:17.6]} 24... Rae8 {[%clk 0:00:14.2]} 25.
Qc2 {[%clk 0:00:07.8]} 25... Bg7 {[%clk 0:00:12.8]} 26. Nf5 {[%clk 0:00:07.5]}
26... Bf8 {[%clk 0:00:11.9]} 27. Nd4 {[%clk 0:00:06.8]} 27... f5 {[%clk
0:00:10.8]} 28. Nf3 {[%clk 0:00:07.2]} 28... Be7 {[%clk 0:00:10.1]} 29. Re1
{[%clk 0:00:07]} 29... Bf6 {[%clk 0:00:10.5]} 30. Rxe4 {[%clk 0:00:07.1]} 30...
fxe4 {[%clk 0:00:11.4]} 31. Nd4 {[%clk 0:00:04.8]} 31... Bxd4+ {[%clk
0:00:11.4]} 32. cxd4 {[%clk 0:00:05.6]} 32... e3+ {[%clk 0:00:12]} 33. Ke2
{[%clk 0:00:06.2]} 33... Ne7 {[%clk 0:00:12]} 34. Qe4 {[%clk 0:00:04.9]} 34...
Kc8 {[%clk 0:00:12.6]} 35. Qe5 {[%clk 0:00:05.1]} 35... Kd8 {[%clk 0:00:13.4]}
36. Qxg5 {[%clk 0:00:04.5]} 36... Kd7 {[%clk 0:00:13.3]} 37. Qg4+ {[%clk
0:00:04.7]} 37... Kd8 {[%clk 0:00:13.4]} 38. Qh4 {[%clk 0:00:04.2]} 38... Kd7
{[%clk 0:00:13.6]} 39. Qg4+ {[%clk 0:00:04.6]} 39... Kd8 {[%clk 0:00:13.5]} 40.
Qh5 {[%clk 0:00:05.3]} 40... Nxd5 {[%clk 0:00:13.3]} 41. Qxd5 {[%clk 0:00:05.3]}
1-0

[Event "Early-Titled-Tuesday-Blitz-February-06-2024"]
[Site "Chess.com"]
[Date "2024.02.06"]
[Round "8"]
[White "Msb2"]
[Black "Aradhya2000"]
[Result "1/2-1/2"]
[WhiteElo "2979"]
[BlackElo "2699"]
[TimeControl "180+1"]
[EndTime "9:28:33 PST"]
[Termination "Game drawn by repetition"]

1. d4 {[%clk 0:03:00.9]} 1... d5 {[%clk 0:03:00.5]} 2. c4 {[%clk 0:03:01.5]}
2... e6 {[%clk 0:03:01.1]} 3. Nc3 {[%clk 0:03:01.8]} 3... Nf6 {[%clk 0:03:01.7]}
4. cxd5 {[%clk 0:03:02.4]} 4... exd5 {[%clk 0:03:02.1]} 5. Bg5 {[%clk
0:03:03.2]} 5... c6 {[%clk 0:03:02.1]} 6. e3 {[%clk 0:03:03.9]} 6... h6 {[%clk
0:03:01.4]} 7. Bf4 {[%clk 0:03:04.2]} 7... Bf5 {[%clk 0:03:00.9]} 8. Nge2 {[%clk
0:03:04.4]} 8... Nbd7 {[%clk 0:02:49]} 9. Ng3 {[%clk 0:03:03.9]} 9... Bh7 {[%clk
0:02:48.6]} 10. h4 {[%clk 0:03:04.6]} 10... Qb6 {[%clk 0:02:46.3]} 11. Qd2
{[%clk 0:02:56.8]} 11... Be7 {[%clk 0:02:39]} 12. Bd3 {[%clk 0:02:52.9]} 12...
Bxd3 {[%clk 0:02:28.7]} 13. Qxd3 {[%clk 0:02:53.8]} 13... O-O {[%clk 0:02:10.5]}
14. O-O {[%clk 0:02:53.5]} 14... Rfe8 {[%clk 0:02:09.7]} 15. Rab1 {[%clk
0:02:51.9]} 15... a5 {[%clk 0:02:07.1]} 16. a3 {[%clk 0:02:51.9]} 16... Bf8
{[%clk 0:01:57.4]} 17. Qc2 {[%clk 0:02:23.6]} 17... Qa6 {[%clk 0:01:48.9]} 18.
b4 {[%clk 0:02:20.7]} 18... axb4 {[%clk 0:01:48.7]} 19. axb4 {[%clk 0:02:21.6]}
19... Qc4 {[%clk 0:01:48.7]} 20. Rfc1 {[%clk 0:02:11.4]} 20... Bxb4 {[%clk
0:00:49.6]} 21. Nce2 {[%clk 0:02:10.6]} 21... Qxc2 {[%clk 0:00:19.6]} 22. Rxc2
{[%clk 0:02:11.5]} 22... Bf8 {[%clk 0:00:19.3]} 23. Rxb7 {[%clk 0:02:11.6]}
23... c5 {[%clk 0:00:19.9]} 24. dxc5 {[%clk 0:02:07.6]} 24... Nxc5 {[%clk
0:00:20.2]} 25. Rb1 {[%clk 0:02:07.1]} 25... Ne6 {[%clk 0:00:20.1]} 26. Be5
{[%clk 0:01:57.3]} 26... Ne4 {[%clk 0:00:20.3]} 27. Nxe4 {[%clk 0:01:51.1]}
27... dxe4 {[%clk 0:00:20.4]} 28. Ng3 {[%clk 0:01:52]} 28... Nc5 {[%clk
0:00:15.2]} 29. Bd4 {[%clk 0:01:51.8]} 29... Nd3 {[%clk 0:00:15.6]} 30. h5
{[%clk 0:01:46.2]} 30... Bd6 {[%clk 0:00:12.3]} 31. Nf5 {[%clk 0:01:39.7]} 31...
Be5 {[%clk 0:00:12.3]} 32. Rb7 {[%clk 0:01:35.9]} 32... Bxd4 {[%clk 0:00:12.1]}
33. Nxd4 {[%clk 0:01:36.8]} 33... Rac8 {[%clk 0:00:10.7]} 34. Nc6 {[%clk
0:01:31.9]} 34... Kf8 {[%clk 0:00:07.5]} 35. Rc4 {[%clk 0:01:23.8]} 35... Re6
{[%clk 0:00:07]} 36. Na5 {[%clk 0:01:24.1]} 36... Rxc4 {[%clk 0:00:06.6]} 37.
Nxc4 {[%clk 0:01:25]} 37... Ne5 {[%clk 0:00:06.1]} 38. Nb6 {[%clk 0:01:15.5]}
38... Nc6 {[%clk 0:00:05.4]} 39. Kh2 {[%clk 0:01:05.5]} 39... Re7 {[%clk
0:00:05.5]} 40. Rxe7 {[%clk 0:01:00.8]} 40... Kxe7 {[%clk 0:00:06.4]} 41. g4
{[%clk 0:01:00.5]} 41... Ne5 {[%clk 0:00:06.4]} 42. Kg3 {[%clk 0:01:00.3]} 42...
Ke6 {[%clk 0:00:07]} 43. Na4 {[%clk 0:01:00]} 43... f5 {[%clk 0:00:06.8]} 44.
gxf5+ {[%clk 0:00:47.5]} 44... Kxf5 {[%clk 0:00:06.9]} 45. Nc5 {[%clk
0:00:48.1]} 45... Nd3 {[%clk 0:00:07.2]} 46. Nb7 {[%clk 0:00:38.9]} 46... Kg5
{[%clk 0:00:07.2]} 47. Nd6 {[%clk 0:00:34.2]} 47... Nc5 {[%clk 0:00:07.2]} 48.
Ne8 {[%clk 0:00:34.8]} 48... Ne6 {[%clk 0:00:07.5]} 49. Nd6 {[%clk 0:00:34.9]}
49... Nc5 {[%clk 0:00:06.9]} 50. Ne8 {[%clk 0:00:34.9]} 50... Ne6 {[%clk
0:00:07.3]} 51. Nd6 {[%clk 0:00:34.5]} 51... Nc5 {[%clk 0:00:07.7]} 1/2-1/2

[Event "Early-Titled-Tuesday-Blitz-February-06-2024"]
[Site "Chess.com"]
[Date "2024.02.06"]
[Round "8"]
[White "alekroth65"]
[Black "ProChessWICTH"]
[Result "0-1"]
[WhiteElo "2372"]
[BlackElo "2518"]
[TimeControl "180+1"]
[EndTime "9:28:33 PST"]
[Termination "ProChessWICTH won on time"]

1. d4 {[%clk 0:03:00.9]} 1... Nf6 {[%clk 0:02:52.2]} 2. c4 {[%clk 0:03:01.1]}
2... g6 {[%clk 0:02:51]} 3. Nc3 {[%clk 0:02:58.9]} 3... d5 {[%clk 0:02:51.7]} 4.
Nf3 {[%clk 0:02:56.8]} 4... Bg7 {[%clk 0:02:51.5]} 5. Bg5 {[%clk 0:02:56]} 5...
Ne4 {[%clk 0:02:50.9]} 6. cxd5 {[%clk 0:02:54.4]} 6... Nxc3 {[%clk 0:02:45.8]}
7. bxc3 {[%clk 0:02:52.5]} 7... Qxd5 {[%clk 0:02:46.4]} 8. e3 {[%clk 0:02:51.9]}
8... c5 {[%clk 0:02:43.8]} 9. Be2 {[%clk 0:02:47.3]} 9... Nc6 {[%clk 0:02:43.4]}
10. O-O {[%clk 0:02:45.5]} 10... O-O {[%clk 0:02:43.1]} 11. Rb1 {[%clk
0:02:37.3]} 11... b6 {[%clk 0:02:32.8]} 12. c4 {[%clk 0:02:34.4]} 12... Qd8
{[%clk 0:02:26]} 13. d5 {[%clk 0:02:32.3]} 13... Na5 {[%clk 0:02:08.8]} 14. Nd2
{[%clk 0:02:24.5]} 14... Qd7 {[%clk 0:01:51.5]} 15. Bf3 {[%clk 0:02:19.4]} 15...
Bb7 {[%clk 0:01:48.5]} 16. Qc2 {[%clk 0:02:08.2]} 16... Rae8 {[%clk 0:01:26.6]}
17. e4 {[%clk 0:02:05.6]} 17... e6 {[%clk 0:01:02.4]} 18. g3 {[%clk 0:01:55.8]}
18... f5 {[%clk 0:01:01.7]} 19. Nb3 {[%clk 0:01:30.4]} 19... fxe4 {[%clk
0:00:58.3]} 20. Bg4 {[%clk 0:01:30]} 20... Nxb3 {[%clk 0:00:53.4]} 21. Rxb3
{[%clk 0:01:19]} 21... Qc7 {[%clk 0:00:41.8]} 22. Bxe6+ {[%clk 0:01:08.5]} 22...
Rxe6 {[%clk 0:00:41.3]} 23. dxe6 {[%clk 0:01:07.8]} 23... Qe5 {[%clk 0:00:41.6]}
24. e7 {[%clk 0:00:58.4]} 24... Re8 {[%clk 0:00:41.7]} 25. h4 {[%clk 0:00:52.1]}
25... h6 {[%clk 0:00:35.2]} 26. Bf4 {[%clk 0:00:48.3]} 26... Qxe7 {[%clk
0:00:35.4]} 27. Ra3 {[%clk 0:00:43.7]} 27... Bc8 {[%clk 0:00:33.6]} 28. Qd2
{[%clk 0:00:38.4]} 28... Rd8 {[%clk 0:00:25.5]} 29. Qe3 {[%clk 0:00:35]} 29...
Bd4 {[%clk 0:00:23.4]} 30. Qe2 {[%clk 0:00:31]} 30... h5 {[%clk 0:00:17.8]} 31.
Bg5 {[%clk 0:00:26.1]} 31... Qd6 {[%clk 0:00:17]} 32. Kh2 {[%clk 0:00:20.3]}
32... Rf8 {[%clk 0:00:15.4]} 33. Qxe4 {[%clk 0:00:18.2]} 33... Bf5 {[%clk
0:00:03.3]} 34. Qe7 {[%clk 0:00:11.1]} 34... Qc6 {[%clk 0:00:03.7]} 35. f3
{[%clk 0:00:03.9]} 35... Bd3 {[%clk 0:00:03.3]} 0-1

[Event "Early-Titled-Tuesday-Blitz-February-06-2024"]
[Site "Chess.com"]
[Date "2024.02.06"]
[Round "8"]
[White "Blitzking642"]
[Black "The_Straightforward_Rook"]
[Result "1/2-1/2"]
[WhiteElo "2535"]
[BlackElo "2407"]
[TimeControl "180+1"]
[EndTime "9:28:37 PST"]
[Termination "Game drawn by repetition"]

1. d4 {[%clk 0:03:00.9]} 1... d5 {[%clk 0:02:49.9]} 2. c4 {[%clk 0:03:00.7]}
2... c6 {[%clk 0:02:49.9]} 3. cxd5 {[%clk 0:02:59]} 3... cxd5 {[%clk 0:02:49.8]}
4. Bf4 {[%clk 0:02:59.6]} 4... Nf6 {[%clk 0:02:49.9]} 5. Nc3 {[%clk 0:02:58.1]}
5... Nc6 {[%clk 0:02:50.5]} 6. e3 {[%clk 0:02:56.8]} 6... Bf5 {[%clk 0:02:48.9]}
7. Qb3 {[%clk 0:02:44.7]} 7... Na5 {[%clk 0:02:46.2]} 8. Qa4+ {[%clk 0:02:43.9]}
8... Bd7 {[%clk 0:02:46.5]} 9. Qc2 {[%clk 0:02:43.8]} 9... e6 {[%clk 0:02:43.1]}
10. Bd3 {[%clk 0:02:39.7]} 10... Rc8 {[%clk 0:02:40.8]} 11. Nge2 {[%clk
0:02:27.1]} 11... Be7 {[%clk 0:02:38]} 12. h3 {[%clk 0:02:24.6]} 12... O-O
{[%clk 0:02:37.6]} 13. O-O {[%clk 0:02:25.2]} 13... Nc4 {[%clk 0:02:32.2]} 14.
Rfc1 {[%clk 0:02:18.5]} 14... a6 {[%clk 0:02:32.1]} 15. a4 {[%clk 0:02:14.9]}
15... h6 {[%clk 0:02:31.1]} 16. b3 {[%clk 0:02:13.6]} 16... Nd6 {[%clk
0:02:30.3]} 17. Qb2 {[%clk 0:02:07.6]} 17... Qb6 {[%clk 0:02:12.5]} 18. Rab1
{[%clk 0:01:48.4]} 18... Rfd8 {[%clk 0:02:11.5]} 19. Na2 {[%clk 0:01:41.5]}
19... Nde4 {[%clk 0:02:06.9]} 20. Rxc8 {[%clk 0:01:01.1]} 20... Rxc8 {[%clk
0:02:07.8]} 21. Rc1 {[%clk 0:00:59.8]} 21... Nd6 {[%clk 0:01:56.4]} 22. Rxc8+
{[%clk 0:00:58.2]} 22... Nxc8 {[%clk 0:01:54.5]} 23. Qc2 {[%clk 0:00:57.6]}
23... Qc6 {[%clk 0:01:52.6]} 24. Qxc6 {[%clk 0:00:56.1]} 24... Bxc6 {[%clk
0:01:53.5]} 25. Kf1 {[%clk 0:00:52.7]} 25... Bd6 {[%clk 0:01:50.9]} 26. Bxd6
{[%clk 0:00:51.6]} 26... Nxd6 {[%clk 0:01:51.8]} 27. Ke1 {[%clk 0:00:51.3]}
27... Kf8 {[%clk 0:01:50.5]} 28. f3 {[%clk 0:00:50.3]} 28... a5 {[%clk
0:01:50.1]} 29. Nec3 {[%clk 0:00:45.2]} 29... Ke7 {[%clk 0:01:49.1]} 30. g4
{[%clk 0:00:44.4]} 30... g5 {[%clk 0:01:48.4]} 31. Kd2 {[%clk 0:00:44.3]} 31...
Nd7 {[%clk 0:01:48.5]} 32. b4 {[%clk 0:00:43.1]} 32... b6 {[%clk 0:01:45.8]} 33.
b5 {[%clk 0:00:38.7]} 33... Bb7 {[%clk 0:01:46]} 34. e4 {[%clk 0:00:35.5]} 34...
f6 {[%clk 0:01:35.4]} 35. Ke3 {[%clk 0:00:34.8]} 35... Nf7 {[%clk 0:01:31.5]}
36. Nc1 {[%clk 0:00:34.1]} 36... Nh8 {[%clk 0:01:31.5]} 37. Nb3 {[%clk
0:00:31.7]} 37... Kd6 {[%clk 0:01:28.2]} 38. Nd2 {[%clk 0:00:30]} 38... Nf8
{[%clk 0:01:28.2]} 39. Nf1 {[%clk 0:00:27.9]} 39... Nhg6 {[%clk 0:01:28.5]} 40.
Ne2 {[%clk 0:00:27.4]} 40... e5 {[%clk 0:01:18.6]} 41. Nfg3 {[%clk 0:00:26]}
41... Nh4 {[%clk 0:01:13.7]} 42. Nh5 {[%clk 0:00:18.9]} 42... Ke6 {[%clk
0:01:05.4]} 43. Ng7+ {[%clk 0:00:15.5]} 43... Kf7 {[%clk 0:01:04.1]} 44. Nf5
{[%clk 0:00:15.6]} 44... Nxf5+ {[%clk 0:01:03.5]} 45. exf5 {[%clk 0:00:16.2]}
45... Nd7 {[%clk 0:01:02.6]} 46. Bc2 {[%clk 0:00:15.8]} 46... Ke7 {[%clk
0:01:02.8]} 47. Bb3 {[%clk 0:00:15.6]} 47... Kd6 {[%clk 0:00:56.7]} 48. Nc3
{[%clk 0:00:16.2]} 48... exd4+ {[%clk 0:00:55.4]} 49. Kxd4 {[%clk 0:00:16.1]}
49... Ne5 {[%clk 0:00:52.8]} 50. Ke3 {[%clk 0:00:13.6]} 50... Nxf3 {[%clk
0:00:51.4]} 51. Kxf3 {[%clk 0:00:12.9]} 51... d4+ {[%clk 0:00:52]} 52. Ne4+
{[%clk 0:00:13.3]} 52... Ke5 {[%clk 0:00:52.3]} 53. Bc2 {[%clk 0:00:13.5]} 53...
Bd5 {[%clk 0:00:51.1]} 54. Bd3 {[%clk 0:00:11.1]} 54... Bb7 {[%clk 0:00:51]} 55.
Bc2 {[%clk 0:00:10.5]} 55... Bd5 {[%clk 0:00:51.1]} 56. Bd3 {[%clk 0:00:10.8]}
56... Bb7 {[%clk 0:00:49.6]} 57. Bc2 {[%clk 0:00:10.9]} 1/2-1/2